[Event "*** Titled Tuesday Blitz"]
[Site "Chess.com"]
[Date "2019.10.01"]
[Round "4"]
[White "ural58"]
[Black "vlad10898"]
[Result "0-1"]
[WhiteElo "2388"]
[BlackElo "2642"]
[TimeControl "180+2"]
[EndTime "13:55:04 PDT"]
[Termination "vlad10898 won by resignation"]

1. Nc3 {[%clk 0:03:01.6]} 1... c5 {[%clk 0:02:59.2]} 2. Nf3 {[%clk 0:03:01.6]}
2... a6 {[%clk 0:02:51.9]} 3. g3 {[%clk 0:02:51.7]} 3... b5 {[%clk 0:02:50.9]}
4. a4 {[%clk 0:02:50.8]} 4... b4 {[%clk 0:02:51.8]} 5. Ne4 {[%clk 0:02:44.3]}
5... e6 {[%clk 0:02:48.8]} 6. d3 {[%clk 0:02:39.3]} 6... d5 {[%clk 0:02:45.4]}
7. Ned2 {[%clk 0:02:40]} 7... Nf6 {[%clk 0:02:46.9]} 8. Bg2 {[%clk 0:02:39.8]}
8... Be7 {[%clk 0:02:47.9]} 9. O-O {[%clk 0:02:32.6]} 9... O-O {[%clk
0:02:43.8]} 10. e4 {[%clk 0:02:27.7]} 10... Nc6 {[%clk 0:02:44.8]} 11. Qe2
{[%clk 0:02:27.4]} 11... a5 {[%clk 0:02:38]} 12. exd5 {[%clk 0:02:23.9]} 12...
exd5 {[%clk 0:02:36.5]} 13. Re1 {[%clk 0:02:17.5]} 13... Bd6 {[%clk 0:02:20.2]}
14. Nb3 {[%clk 0:02:12.4]} 14... h6 {[%clk 0:02:13.4]} 15. Bd2 {[%clk
0:02:06.1]} 15... Ba6 {[%clk 0:02:11.5]} 16. Qd1 {[%clk 0:01:35.3]} 16... Qb6
{[%clk 0:01:57.1]} 17. Nh4 {[%clk 0:01:25.8]} 17... Bc8 {[%clk 0:01:27.5]} 18.
Be3 {[%clk 0:01:06.7]} 18... Be6 {[%clk 0:01:22.3]} 19. Qd2 {[%clk 0:01:05.5]}
19... Ng4 {[%clk 0:01:14.4]} 20. Bf4 {[%clk 0:00:45.4]} 20... Bxf4 {[%clk
0:01:13.4]} 21. gxf4 {[%clk 0:00:46.6]} 21... c4 {[%clk 0:01:10.4]} 22. f5
{[%clk 0:00:44.7]} 22... cxb3 {[%clk 0:01:03.6]} 23. fxe6 {[%clk 0:00:45.4]}
23... fxe6 {[%clk 0:01:05.1]} 24. Re2 {[%clk 0:00:33]} 24... Nd4 {[%clk
0:01:02.4]} 25. Re3 {[%clk 0:00:15.9]} 25... Nxc2 {[%clk 0:00:49.6]} 26. Rae1
{[%clk 0:00:15.9]} 26... Ngxe3 {[%clk 0:00:46.4]} 27. fxe3 {[%clk 0:00:15.5]}
27... Nxe1 {[%clk 0:00:47.1]} 28. Qxe1 {[%clk 0:00:17.4]} 28... Rf6 {[%clk
0:00:47.3]} 29. h3 {[%clk 0:00:17.8]} 29... Raf8 {[%clk 0:00:48.1]} 30. Kh2
{[%clk 0:00:19.7]} 30... Qc7+ {[%clk 0:00:48.6]} 31. Kh1 {[%clk 0:00:20.9]}
31... Qc2 {[%clk 0:00:48.6]} 32. Qg3 {[%clk 0:00:21.4]} 32... Qxb2 {[%clk
0:00:49.8]} 33. Ng6 {[%clk 0:00:20.2]} 33... Qc1+ {[%clk 0:00:47.6]} 34. Kh2
{[%clk 0:00:21]} 34... b2 {[%clk 0:00:49.1]} 0-1

[Event "*** Titled Tuesday Blitz"]
[Site "Chess.com"]
[Date "2019.10.01"]
[Round "4"]
[White "Bigfish1995"]
[Black "cherryandmint"]
[Result "1-0"]
[WhiteElo "2990"]
[BlackElo "2761"]
[TimeControl "180+2"]
[EndTime "13:55:11 PDT"]
[Termination "Bigfish1995 won by resignation"]

1. e4 {[%clk 0:03:00.9]} 1... e5 {[%clk 0:03:00.6]} 2. Nf3 {[%clk 0:03:02.1]}
2... Nc6 {[%clk 0:03:01.9]} 3. Bb5 {[%clk 0:03:03.3]} 3... a6 {[%clk 0:03:02.8]}
4. Ba4 {[%clk 0:03:04]} 4... Nf6 {[%clk 0:03:03.6]} 5. O-O {[%clk 0:03:05.1]}
5... Nxe4 {[%clk 0:03:04.7]} 6. d4 {[%clk 0:03:05]} 6... b5 {[%clk 0:03:05.7]}
7. Bb3 {[%clk 0:03:06.1]} 7... d5 {[%clk 0:03:07.2]} 8. dxe5 {[%clk 0:03:07.3]}
8... Be6 {[%clk 0:03:08.7]} 9. c3 {[%clk 0:03:07.6]} 9... Be7 {[%clk 0:03:08.1]}
10. Bc2 {[%clk 0:03:08.6]} 10... Bg4 {[%clk 0:02:55.8]} 11. Qe1 {[%clk
0:03:06.6]} 11... Nc5 {[%clk 0:02:54.4]} 12. Nd4 {[%clk 0:02:53.4]} 12... Nxd4
{[%clk 0:02:53.9]} 13. cxd4 {[%clk 0:02:52.1]} 13... Ne6 {[%clk 0:02:55.3]} 14.
Be3 {[%clk 0:02:37.4]} 14... c5 {[%clk 0:02:36.2]} 15. Qd2 {[%clk 0:02:25.3]}
15... Rc8 {[%clk 0:02:20.5]} 16. Bb3 {[%clk 0:01:44.2]} 16... cxd4 {[%clk
0:01:02.3]} 17. Bxd4 {[%clk 0:01:43.8]} 17... O-O {[%clk 0:01:03.8]} 18. Nc3
{[%clk 0:01:40.5]} 18... b4 {[%clk 0:01:04.2]} 19. Nxd5 {[%clk 0:01:38.6]} 19...
Bc5 {[%clk 0:00:53.4]} 20. Bxc5 {[%clk 0:01:19.3]} 20... Rxc5 {[%clk 0:00:55.3]}
21. Qxb4 {[%clk 0:01:15.3]} 21... Bh5 {[%clk 0:00:30.4]} 22. Nf4 {[%clk
0:00:52.9]} 22... Rxe5 {[%clk 0:00:30.7]} 23. Nxh5 {[%clk 0:00:24.5]} 23... Rxh5
{[%clk 0:00:32.6]} 24. Rad1 {[%clk 0:00:24.3]} 24... Qc7 {[%clk 0:00:30.8]} 25.
Qd6 {[%clk 0:00:25.4]} 25... Qxd6 {[%clk 0:00:30.5]} 26. Rxd6 {[%clk 0:00:26.6]}
26... Nc5 {[%clk 0:00:32.4]} 27. Bc4 {[%clk 0:00:26.4]} 27... a5 {[%clk
0:00:24.1]} 28. Re1 {[%clk 0:00:27.5]} 28... Rb8 {[%clk 0:00:20.7]} 29. Rb6
{[%clk 0:00:26.7]} 29... Rd8 {[%clk 0:00:20.2]} 30. Rb5 {[%clk 0:00:25.4]} 30...
a4 {[%clk 0:00:20.1]} 31. g4 {[%clk 0:00:21.7]} 31... Rg5 {[%clk 0:00:20.6]} 32.
h3 {[%clk 0:00:22.6]} 32... Ne4 {[%clk 0:00:18.8]} 33. Rxe4 {[%clk 0:00:22.3]}
1-0

[Event "*** Titled Tuesday Blitz"]
[Site "Chess.com"]
[Date "2019.10.01"]
[Round "4"]
[White "Msb2"]
[Black "Keranke"]
[Result "0-1"]
[WhiteElo "2898"]
[BlackElo "2806"]
[TimeControl "180+2"]
[EndTime "13:55:18 PDT"]
[Termination "Keranke won by checkmate"]

1. d4 {[%clk 0:03:01.9]} 1... Nf6 {[%clk 0:02:57.2]} 2. c4 {[%clk 0:03:01.8]}
2... c6 {[%clk 0:02:57.7]} 3. Nc3 {[%clk 0:03:02.1]} 3... d5 {[%clk 0:02:58.8]}
4. e3 {[%clk 0:03:02.7]} 4... Bf5 {[%clk 0:02:59]} 5. cxd5 {[%clk 0:03:00.9]}
5... cxd5 {[%clk 0:03:00.4]} 6. Qb3 {[%clk 0:03:02.5]} 6... Nc6 {[%clk
0:03:01.1]} 7. Qxb7 {[%clk 0:03:04.1]} 7... Bd7 {[%clk 0:03:02.3]} 8. Qb3 {[%clk
0:03:05.7]} 8... Rb8 {[%clk 0:03:03.2]} 9. Qd1 {[%clk 0:03:07.3]} 9... e5 {[%clk
0:03:04.9]} 10. Nf3 {[%clk 0:03:08.8]} 10... Bd6 {[%clk 0:03:05.4]} 11. dxe5
{[%clk 0:03:09.9]} 11... Nxe5 {[%clk 0:03:07.3]} 12. Nd4 {[%clk 0:03:07.5]}
12... O-O {[%clk 0:03:06.5]} 13. Be2 {[%clk 0:03:08.8]} 13... Qe7 {[%clk
0:03:05.6]} 14. O-O {[%clk 0:03:08.7]} 14... Rfc8 {[%clk 0:03:07.1]} 15. a4
{[%clk 0:03:06.5]} 15... Neg4 {[%clk 0:02:58.6]} 16. h3 {[%clk 0:02:26.2]} 16...
Nh2 {[%clk 0:02:42.1]} 17. Re1 {[%clk 0:02:25.9]} 17... Ne4 {[%clk 0:02:23.8]}
18. f4 {[%clk 0:02:06.7]} 18... Rxc3 {[%clk 0:02:16.7]} 19. bxc3 {[%clk
0:02:01.7]} 19... Qh4 {[%clk 0:02:07]} 20. Nf3 {[%clk 0:01:07.8]} 20... Nxf3+
{[%clk 0:00:48.9]} 21. Bxf3 {[%clk 0:01:09.7]} 21... Qf2+ {[%clk 0:00:49.8]} 22.
Kh1 {[%clk 0:00:58.9]} 22... Bf5 {[%clk 0:00:17.3]} 23. Ba3 {[%clk 0:00:35.1]}
23... Bxa3 {[%clk 0:00:13.3]} 24. Rxa3 {[%clk 0:00:36]} 24... Rb2 {[%clk
0:00:14.9]} 25. Ra1 {[%clk 0:00:21.3]} 25... Bxh3 {[%clk 0:00:14.4]} 26. Rg1
{[%clk 0:00:03.3]} 26... Qg3 {[%clk 0:00:15.2]} 27. Bxe4 {[%clk 0:00:03.3]}
27... Bg4 {[%clk 0:00:13.4]} 28. Qxg4 {[%clk 0:00:02.8]} 28... Qxg4 {[%clk
0:00:14.6]} 29. g3 {[%clk 0:00:04.7]} 29... Qh3# {[%clk 0:00:15.4]} 0-1

[Event "*** Titled Tuesday Blitz"]
[Site "Chess.com"]
[Date "2019.10.01"]
[Round "4"]
[White "2165149677570"]
[Black "Nbk90"]
[Result "1-0"]
[WhiteElo "2306"]
[BlackElo "2480"]
[TimeControl "180+2"]
[EndTime "13:55:18 PDT"]
[Termination "2165149677570 won by resignation"]

1. e4 {[%clk 0:03:01.9]} 1... e5 {[%clk 0:02:58.1]} 2. Nf3 {[%clk 0:03:01.1]}
2... Nc6 {[%clk 0:02:57.9]} 3. Bb5 {[%clk 0:02:42.2]} 3... a6 {[%clk 0:02:56.2]}
4. Ba4 {[%clk 0:02:40.3]} 4... Nge7 {[%clk 0:02:56.1]} 5. c3 {[%clk 0:02:38.7]}
5... g6 {[%clk 0:02:54.2]} 6. O-O {[%clk 0:02:35.5]} 6... Bg7 {[%clk 0:02:53.2]}
7. d4 {[%clk 0:02:29.6]} 7... exd4 {[%clk 0:02:53.9]} 8. cxd4 {[%clk 0:02:31.5]}
8... b5 {[%clk 0:02:55.1]} 9. Bb3 {[%clk 0:02:02.4]} 9... O-O {[%clk 0:02:53.8]}
10. d5 {[%clk 0:01:58.8]} 10... Na5 {[%clk 0:02:53.1]} 11. Bc2 {[%clk
0:01:59.3]} 11... c5 {[%clk 0:02:52.4]} 12. e5 {[%clk 0:01:38]} 12... d6 {[%clk
0:02:49.7]} 13. Bf4 {[%clk 0:01:38.8]} 13... Nc4 {[%clk 0:02:46.7]} 14. exd6
{[%clk 0:01:32.7]} 14... Nf5 {[%clk 0:02:42.2]} 15. Nbd2 {[%clk 0:00:58.8]}
15... Nxb2 {[%clk 0:02:36.8]} 16. Qc1 {[%clk 0:00:42.2]} 16... Nxd6 {[%clk
0:02:31]} 17. Bxd6 {[%clk 0:00:36.8]} 17... Qxd6 {[%clk 0:02:30.3]} 18. Rb1
{[%clk 0:00:38.3]} 18... Nc4 {[%clk 0:02:25]} 19. Nxc4 {[%clk 0:00:39.3]} 19...
bxc4 {[%clk 0:02:25.4]} 20. Qd1 {[%clk 0:00:13.3]} 20... Bd7 {[%clk 0:02:16.4]}
21. Ba4 {[%clk 0:00:08.9]} 21... Bxa4 {[%clk 0:02:15.4]} 22. Qxa4 {[%clk
0:00:10.8]} 22... c3 {[%clk 0:02:12.9]} 23. Rfd1 {[%clk 0:00:09.4]} 23... Rab8
{[%clk 0:02:10.2]} 24. Rbc1 {[%clk 0:00:10]} 24... Rb2 {[%clk 0:02:09]} 25. Ne1
{[%clk 0:00:09.9]} 25... Bd4 {[%clk 0:02:06.4]} 26. Qc4 {[%clk 0:00:07.8]} 26...
Bxf2+ {[%clk 0:02:04.7]} 27. Kh1 {[%clk 0:00:08.8]} 27... Bd4 {[%clk 0:02:00.4]}
28. Nf3 {[%clk 0:00:07.6]} 28... Qf6 {[%clk 0:01:50.8]} 29. Nxd4 {[%clk
0:00:07.4]} 29... cxd4 {[%clk 0:01:51.4]} 30. Qxd4 {[%clk 0:00:08.8]} 30... Qg5
{[%clk 0:01:47.5]} 31. Qe4 {[%clk 0:00:03.6]} 31... Rc8 {[%clk 0:01:37.1]} 32.
Rf1 {[%clk 0:00:04.1]} 32... c2 {[%clk 0:01:31.5]} 33. d6 {[%clk 0:00:04.9]}
33... Rb1 {[%clk 0:01:30.2]} 34. d7 {[%clk 0:00:05.6]} 34... Rd8 {[%clk
0:01:27]} 35. Rxb1 {[%clk 0:00:06.8]} 35... cxb1=Q {[%clk 0:01:27.4]} 36. Rxb1
{[%clk 0:00:08.7]} 36... Rxd7 {[%clk 0:01:27.4]} 37. Qe8+ {[%clk 0:00:09.8]}
37... Kg7 {[%clk 0:01:27.4]} 38. Qxd7 {[%clk 0:00:11.7]} 38... Qe5 {[%clk
0:01:25.2]} 39. Qd1 {[%clk 0:00:12.2]} 39... h5 {[%clk 0:01:23.5]} 40. Qb3
{[%clk 0:00:13.5]} 40... Kg8 {[%clk 0:01:22.4]} 41. Qb8+ {[%clk 0:00:14.1]} 1-0

[Event "*** Titled Tuesday Blitz"]
[Site "Chess.com"]
[Date "2019.10.01"]
[Round "4"]
[White "kasparicy"]
[Black "oskariot"]
[Result "1-0"]
[WhiteElo "2416"]
[BlackElo "2700"]
[TimeControl "180+2"]
[EndTime "13:55:21 PDT"]
[Termination "kasparicy won by resignation"]

1. e4 {[%clk 0:02:55.8]} 1... e6 {[%clk 0:03:01.1]} 2. d4 {[%clk 0:02:56.4]}
2... d5 {[%clk 0:03:02.1]} 3. Nd2 {[%clk 0:02:58.3]} 3... c5 {[%clk 0:03:02.5]}
4. Ngf3 {[%clk 0:02:58.7]} 4... Nf6 {[%clk 0:03:03.5]} 5. e5 {[%clk 0:02:59.5]}
5... Nfd7 {[%clk 0:03:05]} 6. c3 {[%clk 0:03:01]} 6... Nc6 {[%clk 0:03:05.2]} 7.
Bd3 {[%clk 0:03:02.4]} 7... Qb6 {[%clk 0:03:02]} 8. O-O {[%clk 0:03:02.9]} 8...
cxd4 {[%clk 0:03:02.3]} 9. cxd4 {[%clk 0:03:04.8]} 9... a5 {[%clk 0:03:03.7]}
10. h3 {[%clk 0:02:59.5]} 10... a4 {[%clk 0:03:00.5]} 11. Re1 {[%clk 0:02:59.8]}
11... Nxd4 {[%clk 0:02:55.6]} 12. Nxd4 {[%clk 0:02:59.9]} 12... Qxd4 {[%clk
0:02:57.5]} 13. Nf3 {[%clk 0:03:01.6]} 13... Qb6 {[%clk 0:02:59.1]} 14. Bg5
{[%clk 0:02:54.8]} 14... Bb4 {[%clk 0:02:49.7]} 15. Be3 {[%clk 0:02:44]} 15...
Bc5 {[%clk 0:02:23.3]} 16. Qd2 {[%clk 0:02:37.5]} 16... Bxe3 {[%clk 0:02:22.6]}
17. Rxe3 {[%clk 0:02:39.4]} 17... Nc5 {[%clk 0:02:22.9]} 18. Bc2 {[%clk
0:02:36.9]} 18... Bd7 {[%clk 0:02:23.8]} 19. Rc1 {[%clk 0:02:36.9]} 19... Qa5
{[%clk 0:02:18.1]} 20. Qd4 {[%clk 0:02:35.8]} 20... Rc8 {[%clk 0:02:12.8]} 21.
Rc3 {[%clk 0:02:33]} 21... b6 {[%clk 0:01:53.6]} 22. Ng5 {[%clk 0:02:03.7]}
22... h6 {[%clk 0:01:45.8]} 23. Qh4 {[%clk 0:02:00.1]} 23... Rg8 {[%clk
0:01:24.5]} 24. Nf3 {[%clk 0:01:28.7]} 24... Qa7 {[%clk 0:01:20.3]} 25. Qg4
{[%clk 0:01:19.3]} 25... Qc7 {[%clk 0:00:50.2]} 26. Bh7 {[%clk 0:01:17.1]} 26...
Rf8 {[%clk 0:00:50.2]} 27. Qxg7 {[%clk 0:01:18.4]} 27... Qd8 {[%clk 0:00:51.3]}
28. Qxh6 {[%clk 0:01:15.9]} 28... Qe7 {[%clk 0:00:51.3]} 29. Ng5 {[%clk
0:01:12.5]} 29... Kd8 {[%clk 0:00:46.4]} 30. Qg7 {[%clk 0:00:54.3]} 30... Kc7
{[%clk 0:00:41.6]} 31. b4 {[%clk 0:00:53.5]} 31... axb3 {[%clk 0:00:42.4]} 32.
axb3 {[%clk 0:00:55.4]} 32... Kb8 {[%clk 0:00:43.8]} 33. Nf3 {[%clk 0:00:48]}
33... Nxb3 {[%clk 0:00:41.5]} 34. Rxc8+ {[%clk 0:00:42.6]} 34... Rxc8 {[%clk
0:00:42]} 35. Rb1 {[%clk 0:00:44]} 35... Ba4 {[%clk 0:00:30.1]} 36. Qg4 {[%clk
0:00:39.2]} 36... Rc4 {[%clk 0:00:28.4]} 37. Qg8+ {[%clk 0:00:37.8]} 37... Qe8
{[%clk 0:00:29.4]} 38. Qxe8+ {[%clk 0:00:38.6]} 38... Bxe8 {[%clk 0:00:30.9]}
39. Rxb3 {[%clk 0:00:39.7]} 39... b5 {[%clk 0:00:31.7]} 40. Bd3 {[%clk
0:00:39.6]} 40... Rc1+ {[%clk 0:00:32.5]} 41. Kh2 {[%clk 0:00:40.5]} 41... Kc7
{[%clk 0:00:34.4]} 42. Bxb5 {[%clk 0:00:40.8]} 42... Bxb5 {[%clk 0:00:36.3]} 43.
Rxb5 {[%clk 0:00:42.3]} 43... Rc2 {[%clk 0:00:37.7]} 44. Kg3 {[%clk 0:00:42.7]}
1-0

[Event "*** Titled Tuesday Blitz"]
[Site "Chess.com"]
[Date "2019.10.01"]
[Round "4"]
[White "GelmanAlexander"]
[Black "NemtsevIgor"]
[Result "1-0"]
[WhiteElo "2503"]
[BlackElo "2307"]
[TimeControl "180+2"]
[EndTime "13:55:22 PDT"]
[Termination "GelmanAlexander won by checkmate"]

1. e4 {[%clk 0:03:01.9]} 1... c6 {[%clk 0:03:00.7]} 2. Ne2 {[%clk 0:03:01.6]}
2... d5 {[%clk 0:03:01.3]} 3. e5 {[%clk 0:03:02.8]} 3... c5 {[%clk 0:03:01.3]}
4. b4 {[%clk 0:03:03.4]} 4... b6 {[%clk 0:02:57.6]} 5. Nf4 {[%clk 0:02:46]} 5...
e6 {[%clk 0:02:53.1]} 6. c3 {[%clk 0:02:29.9]} 6... Ne7 {[%clk 0:02:40.4]} 7. d4
{[%clk 0:02:26.3]} 7... cxd4 {[%clk 0:02:39]} 8. cxd4 {[%clk 0:02:27]} 8... Ng6
{[%clk 0:02:40]} 9. a3 {[%clk 0:02:19.3]} 9... Nxf4 {[%clk 0:02:39.4]} 10. Bxf4
{[%clk 0:02:21.2]} 10... Be7 {[%clk 0:02:40.2]} 11. Bd3 {[%clk 0:02:21.1]} 11...
O-O {[%clk 0:02:38.8]} 12. Nd2 {[%clk 0:02:05.3]} 12... Ba6 {[%clk 0:02:31.4]}
13. b5 {[%clk 0:02:05]} 13... Bb7 {[%clk 0:02:32]} 14. h4 {[%clk 0:02:02.9]}
14... a6 {[%clk 0:02:27.6]} 15. Nf3 {[%clk 0:01:28.5]} 15... f5 {[%clk
0:01:45.2]} 16. Ng5 {[%clk 0:01:07.5]} 16... Bxg5 {[%clk 0:01:17.9]} 17. Bxg5
{[%clk 0:00:50.5]} 17... Qe8 {[%clk 0:01:17.7]} 18. g4 {[%clk 0:00:32.1]} 18...
axb5 {[%clk 0:01:07.5]} 19. gxf5 {[%clk 0:00:32.1]} 19... exf5 {[%clk
0:01:08.2]} 20. Rg1 {[%clk 0:00:32.9]} 20... Kh8 {[%clk 0:01:02.8]} 21. h5
{[%clk 0:00:32.4]} 21... h6 {[%clk 0:00:57.5]} 22. Bxh6 {[%clk 0:00:27.1]} 22...
gxh6 {[%clk 0:00:57.6]} 23. Rg6 {[%clk 0:00:27.6]} 23... Rf7 {[%clk 0:00:54.5]}
24. Qd2 {[%clk 0:00:23.5]} 24... Rh7 {[%clk 0:00:40.4]} 25. Ke2 {[%clk
0:00:19.7]} 25... Nc6 {[%clk 0:00:31.1]} 26. Qf4 {[%clk 0:00:16.6]} 26... Ne7
{[%clk 0:00:31]} 27. Rag1 {[%clk 0:00:12.8]} 27... Nxg6 {[%clk 0:00:27.2]} 28.
hxg6 {[%clk 0:00:14.1]} 28... Rg7 {[%clk 0:00:28.6]} 29. Qxh6+ {[%clk
0:00:14.8]} 29... Kg8 {[%clk 0:00:30]} 30. Bxf5 {[%clk 0:00:15.2]} 30... Rxa3
{[%clk 0:00:22.8]} 31. Rh1 {[%clk 0:00:15.9]} 31... Kf8 {[%clk 0:00:23.4]} 32.
Qh8+ {[%clk 0:00:15.7]} 32... Ke7 {[%clk 0:00:21.5]} 33. Qxg7+ {[%clk
0:00:17.3]} 33... Kd8 {[%clk 0:00:22.3]} 34. Rh8 {[%clk 0:00:17.3]} 34... Qxh8
{[%clk 0:00:21]} 35. Qd7# {[%clk 0:00:17.8]} 1-0

[Event "*** Titled Tuesday Blitz"]
[Site "Chess.com"]
[Date "2019.10.01"]
[Round "4"]
[White "cukus"]
[Black "Bucefal_M"]
[Result "0-1"]
[WhiteElo "2474"]
[BlackElo "2288"]
[TimeControl "180+2"]
[EndTime "13:55:31 PDT"]
[Termination "Bucefal_M won by resignation"]

1. e4 {[%clk 0:03:01.9]} 1... c6 {[%clk 0:03:00.1]} 2. d4 {[%clk 0:03:02.6]}
2... d5 {[%clk 0:03:01.2]} 3. Nd2 {[%clk 0:03:03.9]} 3... dxe4 {[%clk
0:03:01.3]} 4. Nxe4 {[%clk 0:03:05.8]} 4... Nd7 {[%clk 0:03:02.2]} 5. Ng5 {[%clk
0:03:05]} 5... Ngf6 {[%clk 0:03:02.9]} 6. Bd3 {[%clk 0:03:05.6]} 6... e6 {[%clk
0:03:02.1]} 7. N1f3 {[%clk 0:03:06.4]} 7... h6 {[%clk 0:03:03.1]} 8. Nxe6 {[%clk
0:03:02.9]} 8... fxe6 {[%clk 0:02:58.1]} 9. Bg6+ {[%clk 0:03:03.6]} 9... Ke7
{[%clk 0:02:59.3]} 10. O-O {[%clk 0:03:02.3]} 10... Qc7 {[%clk 0:03:00.4]} 11.
c4 {[%clk 0:03:02.8]} 11... Kd8 {[%clk 0:02:55.4]} 12. Re1 {[%clk 0:03:03.6]}
12... Bd6 {[%clk 0:02:51.4]} 13. Ne5 {[%clk 0:02:54.3]} 13... Bxe5 {[%clk
0:01:33.6]} 14. dxe5 {[%clk 0:02:53.7]} 14... Ne8 {[%clk 0:01:34.7]} 15. c5
{[%clk 0:02:46.6]} 15... b6 {[%clk 0:01:13.7]} 16. b4 {[%clk 0:02:45.9]} 16...
Ba6 {[%clk 0:01:08.6]} 17. Bf4 {[%clk 0:02:34.2]} 17... Bc4 {[%clk 0:01:05.8]}
18. Qg4 {[%clk 0:02:13.7]} 18... Bd5 {[%clk 0:00:58.1]} 19. a4 {[%clk
0:01:59.7]} 19... bxc5 {[%clk 0:00:49.1]} 20. bxc5 {[%clk 0:01:54.8]} 20... Nxc5
{[%clk 0:00:37.6]} 21. Be3 {[%clk 0:01:53.1]} 21... Nb3 {[%clk 0:00:32.5]} 22.
Rad1 {[%clk 0:01:46.6]} 22... Qd7 {[%clk 0:00:17.6]} 23. Qb4 {[%clk 0:01:31.1]}
23... Nc7 {[%clk 0:00:10.7]} 24. Rd3 {[%clk 0:01:22.8]} 24... a5 {[%clk
0:00:11.5]} 25. Qa3 {[%clk 0:01:23]} 25... Rb8 {[%clk 0:00:12.1]} 26. Red1
{[%clk 0:01:23.8]} 26... Qe7 {[%clk 0:00:10.4]} 27. Qb2 {[%clk 0:01:21.3]} 27...
Kc8 {[%clk 0:00:10.6]} 28. Qc3 {[%clk 0:01:19.4]} 28... Qb4 {[%clk 0:00:09.8]}
29. Qc2 {[%clk 0:01:17.5]} 29... Rd8 {[%clk 0:00:10.5]} 30. Rc3 {[%clk
0:01:13.2]} 30... Qxa4 {[%clk 0:00:11.1]} 31. Rf1 {[%clk 0:01:12.9]} 31... Qb5
{[%clk 0:00:11.9]} 32. Bd3 {[%clk 0:01:09.6]} 32... Qb4 {[%clk 0:00:11.6]} 33.
Rxc6 {[%clk 0:01:08.3]} 33... Bxc6 {[%clk 0:00:12.5]} 34. Qxc6 {[%clk
0:01:10.2]} 34... Rxd3 {[%clk 0:00:13.5]} 35. Qf3 {[%clk 0:01:04.2]} 35... a4
{[%clk 0:00:14.2]} 36. Qf7 {[%clk 0:00:57.4]} 36... a3 {[%clk 0:00:14.7]} 37.
Qg8+ {[%clk 0:00:58.4]} 37... Kb7 {[%clk 0:00:15.4]} 38. Qxg7 {[%clk 0:00:59.3]}
38... a2 {[%clk 0:00:16.5]} 39. h4 {[%clk 0:00:59.1]} 39... a1=Q {[%clk
0:00:17.5]} 40. Rxa1 {[%clk 0:00:59.8]} 40... Nxa1 {[%clk 0:00:18.9]} 41. Qxh6
{[%clk 0:01:00.6]} 41... Rg8 {[%clk 0:00:18.8]} 42. Kh2 {[%clk 0:01:01.2]} 42...
Qe4 {[%clk 0:00:19.9]} 43. g3 {[%clk 0:01:01]} 43... Rxe3 {[%clk 0:00:20.9]} 44.
fxe3 {[%clk 0:01:01.7]} 44... Qf3 {[%clk 0:00:21.9]} 0-1

[Event "*** Titled Tuesday Blitz"]
[Site "Chess.com"]
[Date "2019.10.01"]
[Round "4"]
[White "WorldChampionBulletChess"]
[Black "malandragem"]
[Result "0-1"]
[WhiteElo "2092"]
[BlackElo "2309"]
[TimeControl "180+2"]
[EndTime "13:55:35 PDT"]
[Termination "malandragem won by resignation"]

1. d4 {[%clk 0:02:37.8]} 1... Nf6 {[%clk 0:03:01.9]} 2. c4 {[%clk 0:02:39.4]}
2... g6 {[%clk 0:02:58.5]} 3. Nc3 {[%clk 0:02:36.8]} 3... Bg7 {[%clk 0:02:58.2]}
4. b3 {[%clk 0:02:38.4]} 4... O-O {[%clk 0:02:58.3]} 5. Bb2 {[%clk 0:02:39.9]}
5... d6 {[%clk 0:02:57.5]} 6. f3 {[%clk 0:02:36.4]} 6... c5 {[%clk 0:02:52.3]}
7. dxc5 {[%clk 0:02:37.1]} 7... dxc5 {[%clk 0:02:51.6]} 8. Qc2 {[%clk
0:02:37.9]} 8... Nc6 {[%clk 0:02:48.3]} 9. Rd1 {[%clk 0:02:29.6]} 9... Bd7
{[%clk 0:02:46.1]} 10. e3 {[%clk 0:02:30]} 10... Qc8 {[%clk 0:02:43.9]} 11. a3
{[%clk 0:02:31]} 11... Rd8 {[%clk 0:02:39.7]} 12. Bd3 {[%clk 0:02:32.2]} 12...
e5 {[%clk 0:02:24]} 13. Nge2 {[%clk 0:02:33.4]} 13... Bf5 {[%clk 0:02:21.7]} 14.
O-O {[%clk 0:02:31.8]} 14... Rxd3 {[%clk 0:02:17]} 15. Rxd3 {[%clk 0:02:33.7]}
15... Bxd3 {[%clk 0:02:14.2]} 16. Qxd3 {[%clk 0:02:35.6]} 16... Qe6 {[%clk
0:02:13.7]} 17. Rd1 {[%clk 0:02:33.1]} 17... Rd8 {[%clk 0:02:14.1]} 18. Nd5
{[%clk 0:02:34.3]} 18... h5 {[%clk 0:02:09.4]} 19. Nec3 {[%clk 0:02:32.7]} 19...
Kh7 {[%clk 0:02:08.6]} 20. Qe2 {[%clk 0:01:48.4]} 20... Na5 {[%clk 0:02:07]} 21.
b4 {[%clk 0:01:38]} 21... cxb4 {[%clk 0:02:01.2]} 22. axb4 {[%clk 0:01:39.9]}
22... Nc6 {[%clk 0:02:02.7]} 23. b5 {[%clk 0:01:37.4]} 23... Na5 {[%clk
0:01:58.5]} 24. Nxf6+ {[%clk 0:01:38.6]} 24... Bxf6 {[%clk 0:01:59.2]} 25. Ne4
{[%clk 0:01:39.7]} 25... Rxd1+ {[%clk 0:01:55.6]} 26. Qxd1 {[%clk 0:01:41.6]}
26... Nxc4 {[%clk 0:01:53.7]} 27. Bc1 {[%clk 0:01:27.4]} 27... Be7 {[%clk
0:01:51.7]} 28. Qd3 {[%clk 0:01:23.2]} 28... f5 {[%clk 0:01:50.8]} 29. Nc3
{[%clk 0:01:18.4]} 29... Nb6 {[%clk 0:01:37]} 30. e4 {[%clk 0:01:10.9]} 30...
Bc5+ {[%clk 0:01:35.5]} 31. Kh1 {[%clk 0:01:11.1]} 31... f4 {[%clk 0:01:30.9]}
32. Qd8 {[%clk 0:00:45.2]} 32... Qc4 {[%clk 0:01:20.3]} 33. Ne2 {[%clk
0:00:12.7]} 33... Qxe2 {[%clk 0:01:13.2]} 34. Qc7+ {[%clk 0:00:13.5]} 34... Kh6
{[%clk 0:01:14.1]} 35. Bxf4+ {[%clk 0:00:10.4]} 35... exf4 {[%clk 0:01:13.4]}
36. Qxf4+ {[%clk 0:00:11.1]} 36... Kg7 {[%clk 0:01:11.3]} 37. Qe5+ {[%clk
0:00:10.9]} 37... Kf7 {[%clk 0:00:56.5]} 38. Qc7+ {[%clk 0:00:11.7]} 38... Be7
{[%clk 0:00:56.1]} 39. Qf4+ {[%clk 0:00:13]} 39... Ke6 {[%clk 0:00:45]} 40. h3
{[%clk 0:00:09.9]} 40... Qe1+ {[%clk 0:00:42]} 41. Kh2 {[%clk 0:00:09.8]} 41...
Bd6 {[%clk 0:00:43.4]} 0-1